bitfinex-derivatives/quotes_BNBF0:USTF0_20250130
["timestamp","ask_amount","ask_price","bid_price","bid_amount"]
[1738220699996,0.27152199,677.81,676.24,0.29575298]
[1738220700197,0.29507229,677.8,676.24,0.29575298]
[1738220700496,0.27152199,677.79,676.24,0.29575298]
[1738220700898,0.29507229,677.8,676.24,0.29575298]
[1738220701090,0.27151588,677.79,676.24,0.29575298]
[1738220701296,0.29508099,677.78,676.24,0.29575298]
[1738220701498,0.27151588,677.77,676.24,0.29575298]
[1738220701697,0.2950897,677.76,676.24,0.29575298]
[1738220701996,0.27151588,677.75,676.24,0.29575298]
[1738220702197,0.29509841,677.74,676.24,0.29575298]
[1738220702399,0.27151588,677.73,676.24,0.29575298]
[1738220702698,0.29510712,677.72,676.24,0.29575298]
[1738220702897,0.27151588,677.71,676.24,0.29575298]
[1738220703300,0.2715191,677.7,676.24,0.29575298]
[1738220703598,0.2715191,677.69,676.24,0.29575298]
[1738220703895,0.2715191,677.68,676.24,0.29575298]
[1738220704098,0.2715191,677.71,676.24,0.29575298]
[1738220704298,0.2715191,677.7,676.24,0.29575298]
[1738220704495,0.2715191,677.71,676.24,0.29575298]
[1738220704699,0.2715191,677.7,676.24,0.29575298]
[1738220705001,0.2715191,677.69,676.24,0.29575298]
[1738220705194,0.2715191,677.71,676.24,0.29575298]
[1738220705400,0.2715191,677.7,676.24,0.29575298]
[1738220705601,0.2715191,677.71,676.24,0.29575298]
[1738220705800,0.2715191,677.7,676.24,0.29575298]
[1738220706099,0.2715191,677.69,676.24,0.29575298]
[1738220706300,0.2715191,677.68,676.24,0.29575298]
[1738220706603,0.27150358,677.67,676.24,0.29575298]
[1738220706803,0.27150358,677.71,676.24,0.29575298]
[1738220714903,0.29510712,677.72,676.24,0.29575298]
[1738220715105,0.27150477,677.71,676.24,0.29575298]
[1738220723011,0.27150477,677.71,676.25,0.2571452]
[1738220723209,0.27150477,677.71,676.27,0.29573986]
[1738220723409,0.27150477,677.71,676.28,0.2571452]
[1738220723611,0.27150477,677.71,676.3,0.29572674]
[1738220723811,0.27150477,677.71,676.31,0.2571452]
[1738220724012,0.27150477,677.71,676.33,0.29571363]
[1738220724313,0.27150477,677.71,676.34,0.2571452]
[1738220724505,0.27150477,677.71,676.36,0.29570051]
[1738220724707,0.27150477,677.71,676.37,0.2571452]
[1738220725206,0.29510712,677.72,676.38,0.29569177]
[1738220725410,0.27141259,677.71,676.39,0.25712262]
[1738220725611,0.27141259,677.71,676.4,0.29568302]
[1738220725807,1.10238555,677.67,676.41,0.25712262]
[1738220726111,0.27141259,677.66,676.42,0.29567428]
[1738220726311,0.27141259,677.66,676.43,0.25712262]
[1738220726511,0.27141259,677.66,676.44,0.29566554]
[1738220726710,0.27141259,677.66,676.45,0.25712262]
[1738220727010,0.27141259,677.66,676.46,0.2956568]
[1738220727912,0.27141259,677.66,676.47,0.25711746]
[1738220728211,0.27141259,677.66,676.48,0.29564806]
[1738220728410,0.27141259,677.66,676.49,0.25710816]
[1738220728611,0.27141259,677.7,676.5,0.29563932]
[1738220728913,0.27141259,677.69,676.51,0.25710306]
[1738220729112,1.10238555,677.71,676.52,0.29563058]
[1738220729113,0.27141259,677.68,676.52,0.29563058]
[1738220729411,0.27141259,677.67,676.52,0.29563058]
[1738220729611,0.27141259,677.7,676.52,0.29563058]
[1738220729914,0.27141259,677.69,676.52,0.29563058]
[1738220730211,0.27141259,677.68,676.52,0.29563058]
[1738220730413,0.27139239,677.67,676.52,0.29563058]
[1738220730605,0.27139239,677.7,676.52,0.29563058]
[1738220730810,0.27139239,677.69,676.52,0.29563058]
[1738220731010,0.27139239,677.68,676.52,0.29563058]
[1738220731211,0.27139239,677.67,676.52,0.29563058]
[1738220731406,0.27139239,677.7,676.52,0.29563058]
[1738220731612,0.27139239,677.69,676.52,0.29563058]
[1738220731808,0.27139239,677.7,676.52,0.29563058]
[1738220732009,0.27139239,677.69,676.52,0.29563058]
[1738220732213,0.27139239,677.68,676.52,0.29563058]
[1738220732408,0.27139239,677.7,676.52,0.29563058]
[1738220732609,1.10238555,677.71,676.52,0.29563058]
[1738220732811,0.29510712,677.72,676.52,0.29563058]
[1738220732812,0.27138734,677.7,676.52,0.29563058]
[1738220733009,0.27138734,677.69,676.52,0.29563058]
[1738220733213,0.27138734,677.68,676.52,0.29563058]
[1738220733417,0.27138734,677.71,676.52,0.29563058]
[1738220733613,0.27138734,677.7,676.52,0.29563058]
[1738220733813,0.2713914,677.69,676.52,0.29563058]
[1738220734015,0.2713914,677.68,676.52,0.29563058]
[1738220734210,0.2713914,677.71,676.52,0.29563058]
[1738220734409,0.2713914,677.7,676.52,0.29563058]
[1738220734715,0.2713914,677.69,676.52,0.29563058]
[1738220734914,0.2713914,677.68,676.52,0.29563058]
[1738220735116,0.2713914,677.67,676.52,0.29563058]
[1738220735317,0.2713914,677.71,676.52,0.29563058]
[1738220735617,0.2713909,677.7,676.52,0.29563058]
[1738220735812,0.2713909,677.71,676.52,0.29563058]
[1738220737121,0.29510712,677.72,676.52,0.29563058]
[1738220737419,0.27139551,677.71,676.53,0.25710571]
[1738220739220,0.27139551,677.71,676.54,0.29562184]
[1738220739422,0.27139551,677.71,676.55,0.25710571]
[1738220739921,0.27139551,677.71,676.56,0.2956131]
[1738220740120,0.27139551,677.71,676.57,0.25710571]
[1738220740322,0.27139551,677.71,676.58,0.29560436]
[1738220744121,0.29510712,677.72,676.58,0.29560436]
[1738220744318,0.27139557,677.71,676.58,0.29560436]
[1738220755630,0.29510712,677.72,676.58,0.29560436]
[1738220760134,0.27141373,677.71,676.58,0.29560436]
[1738220760536,0.29510712,677.72,676.58,0.29560436]
[1738220761237,0.27140748,677.71,676.58,0.29560436]
[1738220762638,0.29510712,677.72,676.58,0.29560436]
[1738220762830,0.27141147,677.71,676.58,0.29560436]
[1738220765040,0.29510712,677.72,676.58,0.29560436]
[1738220765644,0.27140881,677.71,676.58,0.29560436]
[1738220766235,0.27140951,677.7,676.58,0.29560436]
[1738220766437,0.27140951,677.71,676.58,0.29560436]
[1738220769645,0.27141116,677.7,676.58,0.29560436]
[1738220769846,0.27141116,677.71,676.58,0.29560436]
[1738220770049,0.27141116,677.7,676.58,0.29560436]
[1738220770344,0.27141116,677.69,676.58,0.29560436]
[1738220770545,0.27141116,677.71,676.58,0.29560436]
[1738220770746,0.27141116,677.7,676.58,0.29560436]
[1738220770939,0.27141116,677.71,676.58,0.29560436]
[1738220771139,0.27141116,677.7,676.58,0.29560436]
[1738220771345,0.29510712,677.72,676.58,0.29560436]
[1738220771346,0.27141116,677.69,676.58,0.29560436]
[1738220771641,0.27141116,677.68,676.58,0.29560436]
[1738220771845,0.27141116,677.71,676.58,0.29560436]
[1738220772146,0.27141116,677.7,676.58,0.29560436]
[1738220772345,0.29510712,677.72,676.58,0.29560436]
[1738220772346,0.27141116,677.71,676.58,0.29560436]
[1738220772545,0.27141116,677.7,676.58,0.29560436]
[1738220772746,0.27141116,677.71,676.58,0.29560436]
[1738220774546,1.10238555,677.7,676.58,0.29560436]
[1738220777746,0.27135699,677.69,676.58,0.29560436]
[1738220778348,0.27135699,678.13,676.58,0.29560436]
[1738220780550,1.10238555,677.85,676.58,0.29560436]
[1738220780744,0.27135699,677.84,676.58,0.29560436]
[1738220782050,0.27134889,677.83,676.58,0.29560436]
[1738220782249,0.27134889,677.84,676.58,0.29560436]
[1738220782447,0.27134889,677.83,676.58,0.29560436]
[1738220782648,0.27134889,677.82,676.58,0.29560436]
[1738220782844,0.27134889,677.84,676.58,0.29560436]
[1738220783043,1.10238555,677.85,676.58,0.29560436]
[1738220783044,0.27134889,677.83,676.58,0.29560436]
[1738220783245,0.27134889,677.84,676.58,0.29560436]
[1738220783444,0.27134889,677.83,676.58,0.29560436]
[1738220783644,1.10238555,677.87,676.58,0.29560436]
[1738220783847,0.27135072,677.86,676.58,0.29560436]
[1738220786245,0.27135072,677.86,676.59,0.25705959]
[1738220786551,0.27135072,677.86,676.6,0.29559562]
[1738220787452,0.27135072,677.86,676.61,0.25706812]
[1738220787653,0.27135072,677.86,676.62,0.29558688]
[1738220787951,0.27135072,677.86,676.63,0.25706812]
[1738220788149,0.27135072,677.86,676.64,0.29557815]
[1738220788350,0.27135072,677.89,676.64,0.29557815]
[1738220788547,0.27135072,677.88,676.64,0.29557815]
[1738220788751,1.10238555,677.9,676.64,0.29557815]
[1738220789049,0.27135834,677.89,676.64,0.29557815]
[1738220790548,0.27135997,677.88,676.64,0.29557815]
[1738220790754,1.10238555,677.77,676.64,0.29557815]
[1738220790953,0.27135997,677.76,676.64,0.29557815]
[1738220794452,0.27135997,677.96,676.64,0.29557815]
[1738220794649,0.27135997,677.95,676.64,0.29557815]
[1738220794855,0.27135997,677.96,676.64,0.29557815]
[1738220795056,0.27135997,677.95,676.64,0.29557815]
[1738220795254,0.27135997,677.96,676.64,0.29557815]
[1738220795655,1.10238555,677.97,676.64,0.29557815]
[1738220795956,0.27135764,677.96,676.64,0.29557815]
[1738220800753,1.10238555,677.97,676.64,0.29557815]
[1738220800954,0.27135842,677.96,676.64,0.29557815]
[1738220801860,1.10238555,677.94,676.64,0.29557815]
[1738220802057,0.27135842,677.93,676.64,0.29557815]
[1738220804655,1.10238555,677.79,676.64,0.29557815]
[1738220804859,0.27135842,677.78,676.64,0.29557815]
[1738220805862,1.10238555,677.79,676.64,0.29557815]
[1738220806063,0.27135979,677.78,676.64,0.29557815]
[1738220807857,1.10119029,677.52,676.64,0.29557815]
[1738220811566,1.10119029,677.64,676.64,0.29557815]
[1738220813868,1.10119029,677.67,676.64,0.29557815]
[1738220816363,1.10119029,677.68,676.64,0.29557815]
[1738220816768,0.27139276,677.67,676.64,0.29557815]
[1738220819469,1.10119029,677.59,676.64,0.29557815]
[1738220819665,0.27139276,677.58,676.64,0.29557815]
[1738220822570,1.10119029,677.52,676.64,0.29557815]
[1738220822768,0.27139276,677.51,676.64,0.29557815]
[1738220825074,1.10119029,677.52,676.6,0.29559562]
[1738220825882,1.10119029,677.5,676.6,0.29559562]
[1738220828782,2.20357584,677.69,676.6,0.29559562]
[1738220828986,0.27137545,677.68,676.6,0.29559562]
[1738220830986,1.10119029,677.69,676.6,0.29559562]
[1738220831183,0.27136001,677.68,676.6,0.29559562]
[1738220832291,1.10119029,677.6,676.6,0.29559562]
[1738220836292,1.10119029,677.65,676.6,0.29559562]
[1738220838994,1.10119029,677.67,676.6,0.29559562]
[1738220840492,0.27135296,677.66,676.6,0.29559562]
[1738220840692,0.27135296,677.66,676.61,0.2570635]
[1738220840887,0.27135296,677.66,676.62,0.29558688]
[1738220841194,0.27135296,677.66,676.63,0.2570635]
[1738220841494,0.27135296,677.66,676.64,0.29557815]
[1738220841688,0.27135296,677.66,676.65,0.2570635]
[1738220841893,0.27135296,677.66,676.66,0.29556941]
[1738220844197,0.27136149,677.65,676.66,0.29556941]
[1738220844395,0.27136149,677.64,676.66,0.29556941]
[1738220844598,1.10119029,677.55,676.66,0.29556941]
[1738220847094,1.10119029,677.61,676.66,0.29556941]
[1738220856899,1.10119029,677.6,676.66,0.29556941]
[1738220863409,1.10119029,677.57,676.66,0.29556941]
[1738220863907,1.10119029,677.57,676.67,0.25705494]
[1738220864111,1.10119029,677.57,676.68,0.29556067]
[1738220865712,1.10119029,677.57,676.69,0.25705427]
[1738220865911,1.10119029,677.57,676.7,0.29555194]
[1738220867115,1.10119029,677.52,676.7,0.29555194]
[1738220870016,1.10119029,677.7,676.7,0.29555194]
[1738220878320,1.10119029,677.71,676.7,0.29555194]
[1738220878621,0.27135393,677.7,676.7,0.29555194]
[1738220879323,1.10119029,677.71,676.7,0.29555194]
[1738220879517,0.27134916,677.7,676.7,0.29555194]
[1738220880419,1.10119029,677.51,676.7,0.29555194]
[1738220882723,1.10119029,677.47,676.7,0.29555194]
[1738220886921,1.10119029,677.49,676.7,0.29555194]
[1738220891124,1.10119029,677.54,676.7,0.29555194]
[1738220894529,1.10119029,677.56,676.7,0.29555194]
[1738220898033,1.10119029,677.62,676.7,0.29555194]
[1738220900534,1.10119029,677.58,676.7,0.29555194]
[1738220904036,0.56859775,678.14,676.7,0.29555194]
[1738220904037,1.10119029,677.57,676.7,0.29555194]
[1738220907744,1.10119029,677.56,676.7,0.29555194]
[1738220910145,1.10119029,677.49,676.7,0.29555194]
[1738220916947,1.10119029,677.63,676.7,0.29555194]
[1738220920953,1.10119029,677.64,676.7,0.29555194]
[1738220922950,0.27142368,677.63,676.7,0.29555194]
[1738220923848,1.10119029,677.64,676.7,0.29555194]
[1738220924049,0.27142576,677.63,676.7,0.29555194]
[1738220924451,1.10119029,677.6,676.7,0.29555194]
[1738220924651,0.27142576,677.59,676.7,0.29555194]
[1738220927356,1.10119029,677.53,676.7,0.29555194]
[1738220927857,0.27142576,677.52,676.7,0.29555194]
[1738220930755,0.27142576,677.51,676.7,0.29555194]
[1738220931058,0.27142363,677.5,676.7,0.29555194]
[1738220931358,0.27142363,677.49,676.7,0.29555194]
[1738220931556,0.27142363,677.54,676.7,0.29555194]
[1738220933259,1.10119029,677.55,676.7,0.29555194]
[1738220933761,1.10119029,677.5,676.7,0.29555194]
[1738220944168,1.10119029,677.71,676.7,0.29555194]
[1738220944467,0.27143431,677.7,676.7,0.29555194]
[1738220947773,1.10119029,677.67,676.7,0.29555194]
[1738220947970,0.27143431,677.66,676.7,0.29555194]
[1738220950174,1.10119029,677.59,676.7,0.29555194]
[1738220950369,0.27143431,677.58,676.7,0.29555194]
[1738220952678,1.10119029,677.52,676.7,0.29555194]
[1738220952880,0.27143431,677.51,676.7,0.29555194]
[1738220954377,1.10119029,677.52,676.7,0.29555194]
[1738220954782,0.27142138,677.51,676.7,0.29555194]
[1738220955283,1.10119029,677.45,676.7,0.29555194]
[1738220955476,0.27142138,677.44,676.7,0.29555194]
[1738220955985,1.10119029,677.45,676.7,0.29555194]
[1738220956180,0.27142323,677.44,676.7,0.29555194]
[1738220958277,1.10119029,677.33,676.7,0.29555194]
[1738220961483,1.10119029,677.34,676.7,0.29555194]
[1738220963989,1.10119029,677.52,676.7,0.29555194]
[1738220967092,1.10119029,677.56,676.7,0.29555194]
[1738220970703,1.10119029,677.59,676.7,0.29555194]
[1738220971504,0.27140151,677.58,676.7,0.29555194]
[1738220972705,0.27140098,677.57,676.7,0.29555194]
[1738220972906,0.27140098,677.58,676.7,0.29555194]
[1738220973110,0.27140098,677.57,676.7,0.29555194]
[1738220973308,1.10119029,677.45,676.7,0.29555194]
[1738220976409,1.10119029,677.72,676.7,0.29555194]
[1738220979307,1.32286266,678.53,676.7,0.29555194]
[1738220979308,1.10119029,677.69,676.7,0.29555194]
[1738220981112,1.10119029,677.69,676.66,1.54126084]
[1738220982609,1.10119029,677.68,676.66,1.54126084]
[1738220986619,1.10119029,677.65,676.66,1.54126084]
[1738220991321,1.10119029,677.58,676.66,1.54126084]
[1738220992421,1.10119029,677.58,676.04,1.09765334]
[1738220993120,1.10119029,677.58,676.05,1.54205763]
[1738220995521,1.10119029,677.65,676.05,1.54205763]
[1738220995726,0.27151616,677.64,676.05,1.54205763]
[1738221002123,0.27151616,677.63,676.05,1.54205763]
[1738221002323,0.27151616,677.66,676.05,1.54205763]
[1738221005329,1.10119029,677.64,676.05,1.54205763]
[1738221005524,1.10119029,677.64,676.07,0.29582735]
[1738221005827,0.27152052,677.63,676.07,0.29582735]
[1738221009328,1.10119029,677.52,676.07,0.29582735]
[1738221009529,0.27152052,677.51,676.07,0.29582735]
[1738221011531,0.27152052,677.51,676.08,0.2572357]
[1738221011829,0.27152052,677.51,676.1,0.29581422]
[1738221012223,1.10119029,677.52,676.1,0.29581422]
[1738221012422,5.26703842,685.04,676.1,0.29581422]
[1738221012423,1.3727178,677.51,676.1,0.29581422]
[1738221012626,0.27152751,677.5,676.1,0.29581422]
[1738221015034,0.27152751,677.5,676.11,0.25723636]
[1738221015233,0.27152751,677.5,676.12,0.29580547]
[1738221015430,1.10119029,677.51,676.12,0.29580547]
[1738221015735,1.10119029,677.4,676.13,0.25723672]
[1738221015934,0.2715276,677.39,676.14,0.29579672]
[1738221016133,0.2715276,677.39,676.15,0.25723672]
[1738221016334,0.2715276,677.39,676.16,0.29578797]
[1738221016632,0.2715276,677.39,676.17,0.25723672]
[1738221016835,0.2715276,677.39,676.16,0.29578797]
[1738221018634,1.10119029,677.4,676.16,0.29578797]
[1738221018834,0.27152421,677.39,676.16,0.29578797]
[1738221019634,1.10119029,677.31,676.16,0.29578797]
[1738221019935,0.27152421,677.3,676.16,0.29578797]
[1738221020934,0.27152581,677.29,676.16,0.29578797]
[1738221021234,0.27152581,677.3,676.16,0.29578797]
[1738221021535,0.27152581,677.29,676.16,0.29578797]
[1738221021729,0.27152581,677.3,676.16,0.29578797]
[1738221021928,0.27152581,677.29,676.16,0.29578797]
[1738221022133,0.27152581,677.3,676.16,0.29578797]
[1738221022435,0.27152581,677.29,676.16,0.29578797]
[1738221022633,0.27152581,677.28,676.16,0.29578797]
[1738221022833,0.27152581,677.27,676.16,0.29578797]
[1738221023029,0.27152581,677.3,676.16,0.29578797]
[1738221023234,0.27152581,677.29,676.16,0.29578797]
[1738221023431,0.27152581,677.3,676.16,0.29578797]
[1738221023630,0.27152581,677.29,676.16,0.29578797]
[1738221023836,1.10119029,677.31,676.16,0.29578797]
[1738221024031,6.14762866,679.8,676.16,0.29578797]
[1738221024032,1.10119029,677.27,676.16,0.29578797]
[1738221024236,0.27152387,677.26,676.16,0.29578797]
[1738221024437,1.10119029,677.27,676.16,0.29578797]
[1738221027543,1.10119029,677.31,676.16,0.29578797]
[1738221030645,1.10119029,677.23,676.16,0.29578797]
[1738221033842,1.10119029,677.2,676.16,0.29578797]
[1738221036452,1.10119029,677.15,676.16,0.29578797]
[1738221039354,1.10119029,677.26,676.16,0.29578797]
[1738221041651,1.10119029,677.2,676.16,0.29578797]
[1738221044358,0.27163347,677.19,676.16,0.29578797]
[1738221045258,1.10119029,677.2,676.16,0.29578797]
[1738221045558,1.10119029,677.18,676.16,0.29578797]
[1738221046456,0.27163541,677.17,676.16,0.29578797]
[1738221046855,1.10119029,677.18,676.16,0.29578797]
[1738221047057,0.27164274,677.17,676.16,0.29578797]
[1738221048660,0.27164454,677.16,676.16,0.29578797]
[1738221048854,0.27164454,677.18,676.16,0.29578797]
[1738221051862,1.10119029,677.14,676.16,0.29578797]
[1738221052064,0.27168759,677.13,676.16,0.29578797]
[1738221055158,1.10119029,677.14,676.16,0.29578797]
[1738221055361,0.27168565,677.13,676.16,0.29578797]
[1738221055863,0.27168565,677.12,676.16,0.29578797]
[1738221056059,0.27168565,677.18,676.16,0.29578797]
[1738221056363,0.27168565,677.17,676.16,0.29578797]
[1738221056560,0.27168565,677.16,676.16,0.29578797]
[1738221056765,0.27168565,677.15,676.16,0.29578797]
[1738221056963,0.27168565,677.18,676.16,0.29578797]
[1738221057266,0.27168565,677.17,676.16,0.29578797]
[1738221057565,0.27168565,677.16,676.16,0.29578797]
[1738221057760,0.27168565,677.18,676.16,0.29578797]
[1738221057964,0.27168565,677.17,676.16,0.29578797]
[1738221058170,0.27168565,677.18,676.16,0.29578797]
[1738221058365,0.27168565,677.17,676.16,0.29578797]
[1738221058666,0.27168805,677.16,676.16,0.29578797]
[1738221058867,0.27168805,677.15,676.16,0.29578797]
[1738221059067,0.27168805,677.22,676.16,0.29578797]
[1738221059260,0.27168805,677.14,676.16,0.29578797]
[1738221059464,0.27168805,677.13,676.16,0.29578797]
[1738221059668,0.27168805,677.12,676.16,0.29578797]
[1738221059865,0.27168805,677.22,676.16,0.29578797]
[1738221060062,0.27168805,677.21,676.16,0.29578797]
[1738221060263,1.10119029,677.23,676.16,0.29578797]
[1738221060461,0.2716877,677.22,676.16,0.29578797]
[1738221060769,0.2716877,677.21,676.16,0.29578797]
[1738221060965,0.2716877,677.2,676.16,0.29578797]
[1738221061167,0.2716877,677.22,676.16,0.29578797]
[1738221061370,1.10119029,677.1,676.16,0.29578797]
[1738221061569,0.2716877,677.09,676.16,0.29578797]
[1738221063070,1.10119029,677.1,676.16,0.29578797]
[1738221063271,0.27168136,677.09,676.16,0.29578797]
[1738221064672,1.10119029,677.17,676.16,0.29578797]
[1738221064873,0.27168039,677.16,676.16,0.29578797]
[1738221066468,0.27168039,677.15,676.16,0.29578797]
[1738221066670,0.27168039,677.14,676.16,0.29578797]
[1738221066871,0.27168039,677.13,676.16,0.29578797]
[1738221067071,0.27168039,677.17,676.16,0.29578797]
[1738221067267,0.27168039,677.16,676.16,0.29578797]
[1738221067472,0.27168039,677.15,676.16,0.29578797]
[1738221067672,0.27168039,677.17,676.16,0.29578797]
[1738221067874,1.10119029,677.18,676.16,0.29578797]
[1738221068074,0.27167223,677.17,676.16,0.29578797]
[1738221069477,1.10119029,677.18,676.16,0.29578797]
[1738221069679,1.37285757,677.17,676.16,0.29578797]
[1738221070078,0.27166728,677.16,676.16,0.29578797]
[1738221072784,0.27166734,677.15,676.16,0.29578797]
[1738221073083,0.27166734,677.14,676.16,0.29578797]
[1738221073383,0.27166734,677.13,676.16,0.29578797]
[1738221073579,0.27166734,677.12,676.16,0.29578797]
[1738221073779,0.27166734,677.11,676.16,0.29578797]
[1738221073979,0.27166734,677.1,676.16,0.29578797]
[1738221074279,0.27166734,677.09,676.16,0.29578797]
[1738221074478,0.27166734,677.08,676.16,0.29578797]
[1738221074678,0.27166734,677.07,676.16,0.29578797]
[1738221074984,0.27166734,677.06,676.16,0.29578797]
[1738221075285,0.27166734,677.05,676.16,0.29578797]
[1738221075477,0.27166734,677.19,676.16,0.29578797]
[1738221075681,0.27166734,677.18,676.16,0.29578797]
[1738221075979,0.27166734,677.17,676.16,0.29578797]
[1738221076184,0.27166734,677.19,676.16,0.29578797]
[1738221076385,0.27166734,677.18,676.16,0.29578797]
[1738221076587,0.27166734,677.19,676.16,0.29578797]
[1738221076780,1.10119029,677.06,676.16,0.29578797]
[1738221076985,0.27166734,677.05,676.16,0.29578797]
[1738221079089,1.10119029,676.97,676.16,0.29578797]
[1738221080083,0.27168034,676.96,676.16,0.29578797]
[1738221082191,1.10119029,676.8,676.16,0.29578797]
[1738221084596,1.10119029,676.84,676.16,0.29578797]
[1738221087691,1.10119029,676.78,676.16,0.29578797]
[1738221091399,1.10119029,676.76,676.16,0.29578797]
[1738221094801,1.10119029,676.71,676.16,0.29578797]
[1738221097805,1.10119029,676.78,676.16,0.29578797]
[1738221101305,1.10119029,676.84,676.16,0.29578797]
[1738221107711,0.56923022,677.33,676.16,0.29578797]
[1738221107712,1.10119029,676.82,676.16,0.29578797]
[1738221110922,1.10119029,676.79,676.16,0.29578797]
[1738221113624,1.10119029,676.82,676.16,0.29578797]
[1738221116223,1.10119029,676.8,676.16,0.29578797]
[1738221119230,1.10119029,676.81,676.16,0.29578797]
[1738221125132,0.27166291,676.8,676.16,0.29578797]
[1738221125929,1.10119029,676.81,676.16,0.29578797]
[1738221126130,1.10119029,676.74,676.16,0.29578797]
[1738221129229,1.10119029,676.69,676.16,0.29578797]
[1738221133335,1.10119029,676.78,676.16,0.29578797]
[1738221135738,1.10119029,676.81,676.16,0.29578797]
[1738221139240,1.10119029,676.82,676.16,0.29578797]
[1738221139643,1.10119029,676.82,675.69,1.09765334]
[1738221139842,1.10119029,676.82,675.7,0.29598934]
[1738221143451,1.10119029,677.2,675.7,0.29598934]
[1738221143644,0.29533808,677.19,675.7,0.29598934]
[1738221148952,0.27175414,677.18,675.7,0.29598934]
[1738221149349,0.29534681,677.17,675.71,1.54372216]
[1738221149553,0.27175414,677.16,675.71,1.54372216]
[1738221150558,0.29535553,677.15,675.72,0.29598058]
[1738221150757,0.27175414,677.14,675.72,0.29598058]
[1738221150957,0.29536425,677.13,675.72,0.29598058]
[1738221152055,0.27178172,677.12,675.72,0.29598058]
[1738221152256,0.29537298,677.11,675.72,0.29598058]
[1738221152454,0.27178172,677.1,675.72,0.29598058]
[1738221153559,0.2953817,677.09,675.72,0.29598058]
[1738221153752,0.27180076,677.08,675.72,0.29598058]
[1738221155462,1.10119029,676.77,675.72,0.29598058]
[1738221155658,0.27180076,676.76,675.72,0.29598058]
[1738221156160,0.27182597,676.75,675.72,0.29598058]
[1738221156361,0.27182597,676.76,675.72,0.29598058]
[1738221156560,0.27182597,676.75,675.72,0.29598058]
[1738221156763,0.27182597,676.76,675.15,1.09765334]
[1738221156958,0.27182597,676.75,675.17,0.29622169]
[1738221157259,0.27182597,676.74,675.17,0.29622169]
[1738221157460,0.27182597,676.8,675.17,0.29622169]
[1738221157655,0.27182597,676.79,675.17,0.29622169]
[1738221157956,0.27182597,676.78,675.17,0.29622169]
[1738221158161,0.27182597,676.77,675.17,0.29622169]
[1738221158357,1.10119029,676.81,675.17,0.29622169]
[1738221158556,0.27187181,676.8,675.17,0.29622169]
[1738221160159,0.27187181,676.8,675.18,1.54429874]
[1738221160764,1.10119029,676.78,675.18,1.54429874]
[1738221160964,0.27187181,676.77,675.2,0.29620853]
[1738221161562,1.10119029,676.78,675.2,0.29620853]
[1738221161762,0.2718774,676.77,675.2,0.29620853]
[1738221163664,0.2718774,676.82,675.2,0.29620853]
[1738221163966,0.2718774,676.81,675.2,0.29620853]
[1738221164164,0.2718774,676.82,675.2,0.29620853]
[1738221164364,0.2718774,676.81,675.2,0.29620853]
[1738221164558,0.2718774,676.8,675.2,0.29620853]
[1738221164759,0.2718774,676.82,675.2,0.29620853]
[1738221164963,0.2718774,676.81,675.2,0.29620853]
[1738221165160,0.2955039,676.81,675.2,0.29620853]
[1738221165361,0.2718774,676.8,675.2,0.29620853]
[1738221166164,0.29551264,676.79,675.2,0.29620853]
[1738221166364,0.2718774,676.78,675.2,0.29620853]
[1738221166866,0.29552137,676.77,675.2,0.29620853]
[1738221167068,0.2718774,676.76,675.2,0.29620853]
[1738221167570,0.2955301,676.75,675.2,0.29620853]
[1738221167762,0.2718774,676.74,675.2,0.29620853]
[1738221167960,0.29553884,676.73,675.2,0.29620853]
[1738221168169,0.27190281,676.72,675.2,0.29620853]
[1738221168369,0.29554757,676.71,675.2,0.29620853]
[1738221168569,0.27190281,676.7,675.2,0.29620853]
[1738221168769,0.29555631,676.69,675.2,0.29620853]
[1738221168968,0.27190281,676.68,675.2,0.29620853]
[1738221171270,0.27189699,676.67,675.2,0.29620853]
[1738221171470,0.27189699,676.68,675.2,0.29620853]
[1738221171670,0.27189699,676.67,675.2,0.29620853]
[1738221171971,0.27189699,676.66,675.2,0.29620853]
[1738221172170,0.27189699,676.65,675.2,0.29620853]
[1738221172368,0.27189699,676.68,675.2,0.29620853]
[1738221172668,0.27189699,676.67,675.2,0.29620853]
[1738221172869,0.27189699,676.68,675.2,0.29620853]
[1738221173072,0.27189699,676.67,675.2,0.29620853]
[1738221173271,0.29555631,676.69,675.2,0.29620853]
[1738221174467,0.27187552,676.68,675.2,0.29620853]
[1738221176075,0.27188453,676.67,675.2,0.29620853]
[1738221176376,0.27188453,676.68,675.2,0.29620853]
[1738221176578,0.27188505,676.67,675.2,0.29620853]
[1738221176776,0.27188505,676.68,675.2,0.29620853]
[1738221176979,0.27188505,676.67,675.2,0.29620853]
[1738221177173,0.27188505,676.66,675.2,0.29620853]
[1738221177379,0.27188505,676.68,675.2,0.29620853]
[1738221177579,0.27188505,676.67,675.2,0.29620853]
[1738221177879,0.27188505,676.66,675.2,0.29620853]
[1738221178080,0.27188505,676.68,675.2,0.29620853]
[1738221178275,0.27188505,676.67,675.2,0.29620853]
[1738221178479,0.27188505,676.68,675.2,0.29620853]
[1738221178676,0.27188505,676.67,675.2,0.29620853]
[1738221178874,0.27188505,676.66,675.2,0.29620853]
[1738221179074,0.27188505,676.65,675.2,0.29620853]
[1738221179480,0.29557815,676.64,675.2,0.29620853]
[1738221179783,0.27188505,676.63,675.2,0.29620853]
[1738221180374,0.29558688,676.62,675.2,0.29620853]